bitfinex/quotes_ETHUSD_20230703
["timestamp","ask_amount","ask_price","bid_price","bid_amount"]
[1688415934028,7.65200816,1963.4,1963.1,12.73479]
[1688415934230,14.21980498,1963.4,1963.1,5.09382]
[1688415934441,14.21980498,1963.4,1963.0,10.1883]
[1688415935130,0.00347554,1963.3,1963.0,10.1883]
[1688415935322,5.09702554,1963.3,1963.0,10.1883]
[1688415936212,0.00347554,1963.3,1963.0,12.73542]
[1688415936418,0.00347554,1963.3,1963.0,15.12393165]
[1688415937021,2.006,1963.5,1963.0,15.12393165]
[1688415937236,4.56478816,1963.5,1963.0,15.12393165]
[1688415938085,0.00348415,1963.4,1963.0,15.12393165]
[1688415938531,0.00348415,1963.4,1963.0,16.42193165]
[1688415938731,0.00348415,1963.4,1963.2,12.7343]
[1688415939532,0.00348415,1963.4,1963.2,15.1057]
[1688415944273,2.56227231,1963.4,1963.2,12.55884]
[1688415944425,12.74869231,1963.4,1963.0,7.43503]
[1688415944755,12.74869231,1963.4,1963.0,12.52915]
[1688415944756,14.33012893,1963.4,1963.0,12.52915]
[1688415946123,14.33012893,1963.4,1963.0,12.52926]
[1688415946964,5.09372,1963.2,1963.0,5.09417]
[1688415947137,7.65250816,1963.2,1963.0,10.18841]
[1688415947323,7.65250816,1963.2,1962.9,2.3449]
[1688415947523,0.75803676,1963.1,1962.9,2.3449]
[1688415947723,10.95779492,1963.1,1962.8,0.41297383]
[1688415947962,2.55878816,1963.0,1962.7,2.376]
[1688415948163,5.0945,1962.9,1962.7,12.56598]
[1688415948530,7.65659786,1963.0,1962.7,12.56598]
[1688415948759,14.1040755,1963.0,1962.7,12.56598]
[1688415950626,14.1041955,1963.0,1962.7,12.56598]
[1688415951042,9.0097055,1963.0,1962.7,15.11349]
[1688415952989,3.9153455,1963.0,1962.7,15.11349]
[1688415954792,9.0096055,1963.0,1962.7,15.11349]
[1688415955101,0.90096055,1962.9,1962.7,7.47102]
[1688415955250,3.45974871,1962.9,1962.7,12.56604]
[1688415956071,0.00343247,1962.8,1962.7,12.56604]
[1688415958550,5.09819247,1962.8,1962.7,7.47102]
[1688415959607,6.46344159,1962.8,1962.7,7.47102]
[1688415960798,6.46344159,1962.8,1962.6,10.19026]
[1688415962399,5.09819247,1962.8,1962.6,10.19026]
[1688415962569,0.00343247,1962.8,1962.6,10.19026]
[1688415966078,0.00343247,1962.8,1962.6,12.7379]
[1688415969871,0.00343247,1962.8,1962.7,1.297]
[1688415970063,7.09399,1963.1,1962.7,14.03455]
[1688415970265,2.55878816,1963.0,1962.7,14.03455]
[1688415970562,2.0,1963.1,1962.7,15.624095]
[1688415970802,9.65276816,1963.1,1962.7,15.624095]
[1688415970958,0.0034497,1963.0,1962.7,15.624095]
[1688415971603,5.0977097,1963.0,1962.7,15.624095]
[1688415972494,0.0034497,1963.0,1962.7,15.624095]
[1688415973292,5.0977197,1963.0,1962.7,15.624095]
[1688415974565,5.0977197,1963.0,1962.7,13.076585]
[1688415976372,10.1919897,1963.0,1962.7,13.076585]
[1688415978991,5.0977197,1963.0,1962.7,13.076585]
[1688415981243,0.0034497,1963.0,1962.8,3.0856585]
[1688415981451,0.0034497,1963.0,1962.9,11.487]
[1688415982004,0.0034497,1963.0,1962.9,6.3925]
[1688415982805,0.0034497,1963.0,1962.9,14.03425]
[1688415983177,7.4686239,1963.5,1962.9,21.60745]
[1688415983178,7.09336,1963.4,1962.9,21.60745]
[1688415983326,2.0,1963.4,1963.0,2.160745]
[1688415983528,2.0,1963.4,1963.1,10.18786]
[1688415983713,2.0,1963.4,1963.2,1.292]
[1688415983910,2.0,1963.4,1963.2,6.3857]
[1688415984126,0.00338719,1963.3,1963.2,6.3857]
[1688415985101,2.0,1963.4,1963.2,6.3857]
[1688415985345,9.7499539,1963.6,1963.2,6.38571]
[1688415985546,12.74490816,1963.5,1963.2,6.38571]
[1688415985844,7.65173816,1963.5,1963.2,6.38571]
[1688415986049,0.00335627,1963.4,1963.2,6.38571]
[1688415986510,0.00335627,1963.4,1963.3,1.298]
[1688415987562,1.0596739,1964.0,1963.3,26.58098116]
[1688415987703,6.110888,1964.2,1963.8,12.73007]
[1688415987704,1.019668,1964.2,1963.8,12.73007]
[1688415987902,1.019668,1964.2,1964.0,12.7291]
[1688415988174,1.019668,1964.2,1964.0,18.0911]
[1688415988175,0.00303019,1964.1,1964.0,18.0911]
[1688415988310,1.019668,1964.2,1964.1,18.80747972]
[1688415988507,1.019668,1964.2,1964.1,22.86542769]
[1688415989103,1.02246897,1964.2,1964.1,25.17257865]
[1688415989332,1.02246897,1964.2,1964.1,22.62841797]
[1688415989544,1.02246897,1964.2,1964.1,10.18278]
[1688415990022,1.019668,1964.2,1964.1,10.18278]
[1688415990405,1.019668,1964.2,1964.1,5.09139]
[1688415990841,1.019668,1964.2,1964.1,10.18278]
[1688415991104,0.00287767,1964.2,1964.1,10.18278]
[1688415991542,0.00287767,1964.2,1964.1,5.09139]
[1688415992042,11.32791964,1964.4,1964.1,10.18278]
[1688415992823,6.23706964,1964.4,1964.1,10.18278]
[1688415993024,0.00288627,1964.3,1964.1,10.18278]
[1688415993350,0.00288627,1964.3,1964.1,12.72847]
[1688415997962,4.55878816,1964.2,1963.8,2.3646]
[1688415998212,9.65001816,1964.2,1963.9,10.18346]
[1688415998868,11.1250096,1964.2,1963.7,2.3884]
[1688415999033,0.00285286,1964.1,1963.9,5.09181]
[1688415999241,12.74468102,1964.1,1963.9,5.09181]
[1688415999652,7.65305102,1964.1,1963.9,10.18371]
[1688415999967,2.56164102,1964.1,1963.9,10.18371]
[1688416000116,0.00285286,1964.1,1963.9,13.2644445]
[1688416002094,5.09424286,1964.1,1963.9,5.6265945]
[1688416002870,0.00285286,1964.1,1964.0,5.362]
[1688416003212,11.32799964,1964.4,1964.0,19.8691]
[1688416003356,11.32799964,1964.4,1964.1,0.48]
[1688416003553,11.32799964,1964.4,1964.2,5.09113]
[1688416004103,0.00287006,1964.3,1964.1,10.66252]
[1688416004397,5.09380006,1964.3,1964.1,11.30630443]
[1688416006202,0.00287006,1964.3,1964.1,13.85199443]
[1688416006374,0.00287006,1964.3,1964.1,15.14999443]
[1688416007158,0.00287006,1964.3,1964.1,12.60430443]
[1688416008603,0.00287006,1964.3,1964.1,11.96052]
[1688416008914,2.55878816,1964.2,1964.0,5.09151]
[1688416009057,7.65010816,1964.2,1964.0,5.09151]
[1688416010091,0.00285286,1964.1,1964.0,5.09151]
[1688416010686,0.00285286,1964.1,1964.0,6.109838]
[1688416010882,0.00285286,1964.1,1964.0,16.563478]
[1688416011109,11.32781964,1964.4,1964.0,20.887298]
[1688416011435,1.14642964,1964.4,1964.1,1.293]
[1688416011720,6.23703964,1964.4,1964.2,5.09113]
[1688416012102,0.00284846,1964.3,1964.2,5.09113]
[1688416012308,0.00284846,1964.3,1964.2,11.329793]
[1688416013188,15.28880662,1964.3,1964.0,1.018328]
[1688416013402,15.28880662,1964.3,1964.0,3.0]
[1688416014491,15.28880662,1964.3,1964.0,8.09162]
[1688416017006,12.74337662,1964.3,1964.0,13.18326]
[1688416017729,7.65250662,1964.3,1964.0,13.18326]
[1688416017899,2.56163662,1964.3,1964.0,17.02708]
[1688416018245,12.74337662,1964.3,1964.0,14.885968]
[1688416018529,12.74337662,1964.3,1964.0,13.18326]
[1688416022339,7.65250662,1964.3,1964.0,13.18326]
[1688416023500,7.65250662,1964.3,1964.0,15.72908]
[1688416028758,2.56163662,1964.3,1964.0,15.72908]
[1688416029959,7.65253662,1964.3,1964.0,15.72908]
[1688416031233,2.56163662,1964.3,1964.0,15.72908]
[1688416034937,7.65251662,1964.3,1964.0,15.72908]
[1688416037379,0.00284846,1964.3,1964.0,18.895588]
[1688416040746,0.00284846,1964.3,1964.0,17.603588]
[1688416040951,0.00284846,1964.3,1964.0,15.72908]
[1688416044098,10.18460846,1964.3,1964.0,13.18326]
[1688416044896,5.09372846,1964.3,1964.0,15.72908]
[1688416045198,0.00284846,1964.3,1964.0,15.72908]
[1688416045498,5.09371846,1964.3,1964.0,15.72908]
[1688416045882,6.41657382,1964.3,1964.0,15.72908]
[1688416046980,5.09371846,1964.3,1964.0,15.72908]
[1688416047308,5.09371846,1964.3,1964.0,17.95483521]
[1688416047471,5.09371846,1964.3,1964.0,15.72908]
[1688416047472,6.41657382,1964.3,1964.0,15.72908]
[1688416050617,11.50744382,1964.3,1964.0,13.18326]
[1688416053806,6.41657382,1964.3,1964.0,13.18326]
[1688416059903,6.41657382,1964.3,1964.0,15.72908]
[1688416062206,0.00284846,1964.3,1964.0,15.99681971]
[1688416062419,0.00284846,1964.3,1964.1,1.86742168]
[1688416062637,0.00284846,1964.3,1964.2,10.18226]
[1688416073855,0.00284846,1964.3,1964.2,5.09113]
[1688416074058,5.09371846,1964.3,1964.2,5.09113]
[1688416075134,0.00284846,1964.3,1964.2,10.18226]
[1688416083399,0.00284846,1964.3,1964.2,5.09113]
[1688416085273,0.00284846,1964.3,1964.2,10.18226]
[1688416094498,0.00284846,1964.3,1964.2,12.72782]
[1688416097804,0.00284846,1964.3,1964.2,10.18226]
[1688416099611,0.00284846,1964.3,1964.2,24.100331]
[1688416100166,0.00284846,1964.3,1964.2,16.192771]
[1688416100370,0.00284846,1964.3,1964.2,20.256771]
[1688416102008,0.00284846,1964.3,1964.2,14.894771]
[1688416104986,0.00284846,1964.3,1964.2,11.869211]
[1688416105182,0.00284846,1964.3,1964.2,10.18226]
[1688416105592,0.00284846,1964.3,1964.2,18.56982]
[1688416106210,1.14642964,1964.4,1964.2,18.56982]
[1688416106422,1.14642964,1964.4,1964.3,0.48]
[1688416106592,1.14642964,1964.4,1964.3,18.56917]
[1688416107187,1.14925106,1964.4,1964.3,18.56917]
[1688416109025,1.14925106,1964.4,1964.3,12.72717]
[1688416109330,1.14925106,1964.4,1964.3,5.09087]
[1688416109514,1.14925106,1964.4,1964.3,10.18174]
[1688416114913,8.79864922,1964.4,1964.0,8.09144]
[1688416115113,3.43865308,1964.3,1964.0,8.09144]
[1688416115438,8.53556308,1964.3,1964.0,13.18308]
[1688416115734,3.44465308,1964.3,1964.0,13.18308]
[1688416116028,4.74265308,1964.3,1964.0,13.18308]
[1688416116240,0.47712021,1964.2,1964.0,13.18308]
[1688416116441,2.56164306,1964.2,1964.0,13.18308]
[1688416116889,0.0028549,1964.2,1964.0,13.45081971]
[1688416117093,0.0028549,1964.2,1964.0,13.18308]
[1688416117424,0.0028549,1964.2,1964.1,10.45051971]
[1688416118998,0.0028549,1964.2,1964.1,10.18278]
[1688416119790,0.0028549,1964.2,1964.1,10.13278]
[1688416124321,0.0028549,1964.2,1964.1,14.49245]
[1688416125146,1.15242964,1964.4,1964.1,14.49245]
[1688416125321,1.15242964,1964.4,1964.1,12.67847]
[1688416125521,6.24304964,1964.4,1964.1,12.67847]
[1688416126113,0.00280957,1964.3,1964.1,12.67847]
[1688416127046,0.00280957,1964.3,1964.1,10.13278]
[1688416127448,5.09371957,1964.3,1964.1,10.13278]
[1688416127651,6.22739649,1964.3,1964.1,10.13278]
[1688416128215,5.09371957,1964.3,1964.1,10.13278]
[1688416129315,0.00280957,1964.3,1964.1,10.13278]
[1688416129522,0.0093073,1964.3,1964.1,10.13278]
[1688416130449,0.00957553,1964.3,1964.1,10.13278]
[1688416131919,0.00280957,1964.3,1964.1,10.13278]
[1688416136560,5.09367957,1964.3,1964.1,10.13278]
[1688416136758,6.22735249,1964.3,1964.1,10.13278]
[1688416141006,5.09367957,1964.3,1964.1,10.13278]
[1688416155966,0.01085102,1964.2,1964.1,10.13278]
[1688416156472,5.09367957,1964.3,1964.1,10.13278]
[1688416160929,5.09367957,1964.3,1964.1,5.04139]
[1688416161134,0.00974012,1964.2,1964.1,5.04139]
[1688416161479,6.42179287,1964.3,1964.1,5.04139]
[1688416161675,7.68827712,1964.3,1964.1,5.04139]
[1688416162769,6.36016382,1964.3,1964.1,5.04139]
[1688416164077,0.00727592,1964.2,1964.1,5.04139]
[1688416164607,5.09367957,1964.3,1964.1,5.04139]
[1688416167273,0.00280957,1964.3,1964.1,5.04139]
[1688416168416,5.09368957,1964.3,1964.1,5.04139]
[1688416168588,5.09368957,1964.3,1964.1,10.13278]
[1688416169018,5.09368957,1964.3,1964.1,5.04139]
[1688416169188,8.91896298,1964.3,1964.1,5.04139]
[1688416169890,0.00561917,1964.2,1964.1,5.04139]
[1688416170080,0.00842014,1964.2,1964.1,5.04139]
[1688416170280,0.00280097,1964.2,1964.1,5.04139]
[1688416171758,0.00280097,1964.2,1964.1,10.13278]
[1688416173218,0.00280097,1964.2,1964.1,5.04139]
[1688416173423,0.00280097,1964.2,1964.1,10.13278]
[1688416173650,0.00280097,1964.2,1964.1,5.04139]
[1688416173819,0.00830481,1964.2,1964.1,5.04139]
[1688416174029,0.00280097,1964.2,1964.1,5.04139]
[1688416174551,0.00280097,1964.2,1964.1,10.13278]
[1688416176651,0.00837752,1964.2,1964.1,10.13278]
[1688416177647,2.56716568,1964.2,1964.1,5.04139]
[1688416177853,3.33297025,1964.2,1964.1,5.04139]
[1688416178527,3.3273937,1964.2,1964.1,5.04139]
[1688416178966,3.33372872,1964.2,1964.1,5.04139]
[1688416179179,3.33372872,1964.2,1964.1,10.13278]
[1688416179482,2.56158913,1964.2,1964.1,10.13278]
[1688416206974,2.56158913,1964.2,1964.1,5.04139]
[1688416207159,2.56779776,1964.2,1964.1,5.04139]
[1688416207477,7.65892776,1964.2,1964.1,5.04139]
[1688416208363,7.65892776,1964.2,1964.0,8.09139]
[1688416208677,2.55878816,1964.1,1964.0,13.18287]
[1688416209125,2.56418985,1964.1,1964.0,13.18287]
[1688416209299,2.55878816,1964.1,1964.0,13.18287]
[1688416216996,2.56432191,1964.1,1964.0,13.18287]
[1688416219496,2.55878816,1964.1,1964.0,13.18287]
[1688416220044,2.50878816,1964.1,1964.0,13.18287]
[1688416220253,2.51420477,1964.1,1964.0,13.18287]
[1688416220657,2.50878816,1964.1,1964.0,13.18287]
[1688416221659,2.6478717,1964.1,1964.0,13.18287]
[1688416222439,2.65064082,1964.1,1964.0,13.18287]
[1688416223023,2.65739725,1964.1,1964.0,8.09139]
[1688416223245,2.65064082,1964.1,1964.0,13.18303]
[1688416223418,2.65823812,1964.1,1964.0,8.09139]
[1688416223619,7.74203082,1964.1,1964.0,8.09139]
[1688416224058,7.75301282,1964.1,1964.0,8.09139]
[1688416224918,7.75301282,1964.1,1964.0,3.0]
[1688416225320,7.70301282,1964.1,1964.0,3.0]
[1688416229750,2.61162282,1964.1,1964.0,3.0]
[1688416230862,7.69203082,1964.1,1964.0,3.0]
[1688416231158,7.70487264,1964.1,1964.0,3.0]
[1688416240250,7.69203082,1964.1,1963.9,3.0]
[1688416240460,7.69203082,1964.1,1963.4,10.71693184]
[1688416240461,14.72975,1963.9,1963.4,10.71693184]
[1688416240666,14.72975,1963.9,1963.1,3.13002943]
[1688416240667,2.0,1963.7,1963.1,3.13002943]
[1688416240963,12.75056816,1963.6,1963.1,13.26565184]
[1688416241262,5.09325,1963.4,1963.1,10.18788]
[1688416241557,5.09325,1963.4,1963.1,10.71866184]
[1688416241756,10.1865,1963.4,1963.1,10.71866184]
[1688416241918,10.32558354,1963.4,1963.1,10.71866184]
[1688416242115,10.32558354,1963.4,1963.1,10.18788]
[1688416242475,3.6001873,1963.3,1962.9,2.4632]
[1688416242621,5.09377,1963.2,1962.9,8.85567]
[1688416243040,5.23285354,1963.2,1962.9,9.26527458]
[1688416243420,10.32662354,1963.2,1963.0,3.0]
[1688416243853,10.32662354,1963.2,1962.9,4.17080458]
[1688416244057,5.23285354,1963.2,1962.9,7.96722458]
[1688416244222,5.23285354,1963.2,1962.9,13.06172458]
[1688416244856,5.23285354,1963.2,1962.9,15.60897458]
[1688416245362,0.00304908,1963.1,1962.9,15.60897458]
[1688416245548,0.00304908,1963.1,1963.0,3.0]
[1688416245730,0.00304908,1963.1,1963.0,8.09424]
[1688416245936,0.14213262,1963.1,1963.0,8.09424]
[1688416246247,0.14213262,1963.1,1963.0,13.18848]
[1688416247065,10.33009262,1963.1,1962.9,5.09435]
[1688416247224,5.23611262,1963.1,1962.9,5.09448]
[1688416247424,5.23611262,1963.1,1962.8,5.09457]
[1688416247661,5.23611262,1963.1,1962.8,5.49326842]
[1688416248166,5.23611262,1963.1,1962.8,10.58786842]
[1688416248522,5.23611262,1963.1,1962.8,5.49326842]
[1688416248973,10.33009262,1963.1,1962.8,5.49326842]
[1688416249169,16.46948004,1963.1,1962.7,5.4609]
[1688416249329,18.46948004,1963.1,1962.6,1.292]
[1688416249530,18.46948004,1963.1,1962.6,9.38724]
[1688416249861,5.09455,1962.9,1962.6,14.48252]
[1688416250066,5.23363354,1962.9,1962.6,14.48252]
[1688416250282,10.32818354,1962.9,1962.6,14.48252]
[1688416251175,5.23363354,1962.9,1962.6,13.19052]
[1688416252469,10.32818354,1962.9,1962.6,13.19052]
[1688416252777,0.13908354,1962.9,1962.7,1.298]
[1688416252977,0.13908354,1962.9,1962.8,12.7369]
[1688416254182,0.13908354,1962.9,1962.8,19.8959]
[1688416254183,8.354e-05,1962.9,1962.8,19.8959]
[1688416254391,0.006,1963.6,1963.0,0.5]
[1688416254678,0.006,1963.7,1963.4,5.362]
[1688416254981,5.09173,1964.0,1963.7,10.18484]
[1688416255186,0.006,1964.2,1963.8,1.298]
[1688416255342,2.0,1964.4,1964.0,1.298]
[1688416255343,5.09698,1964.3,1964.0,1.298]
[1688416255538,5.09117,1964.2,1964.0,6.38951]
[1688416255750,5.09717,1964.2,1964.0,6.38951]
[1688416256284,5.09717,1964.2,1964.0,5.09151]
[1688416256581,5.10090398,1964.2,1964.0,5.09151]
[1688416256952,5.10092398,1964.2,1964.0,5.09151]
[1688416259386,10.19211398,1964.2,1964.0,5.09151]
[1688416259793,10.18611398,1964.2,1964.0,5.09151]
[1688416260970,10.19211398,1964.2,1964.0,5.09151]
[1688416262891,5.09164,1964.0,1963.8,5.4435]
[1688416263043,5.09164,1964.0,1963.8,10.53561]
[1688416265804,5.09164,1964.0,1963.8,12.098396]
[1688416266103,5.09164,1964.0,1963.8,17.190556]
[1688416267397,10.18328,1964.0,1963.8,10.53561]
[1688416267600,10.18328,1964.0,1963.8,10.48561]
[1688416267765,10.18328,1964.0,1963.8,8.04211]
[1688416267968,10.18928,1964.0,1963.8,8.04211]
[1688416268198,10.18328,1964.0,1963.8,8.04211]
[1688416269466,16.56901934,1964.0,1963.7,5.09232]
[1688416269670,16.56901934,1964.0,1963.6,12.59288]
[1688416270387,14.02319934,1964.0,1963.6,12.59288]
[1688416270593,12.74806816,1964.0,1963.6,15.13922]
[1688416271400,7.65642816,1964.0,1963.6,15.13922]
[1688416271800,2.56478816,1964.0,1963.6,15.13922]
[1688416272478,0.01632181,1964.1,1963.6,20.50122]
[1688416272678,0.006,1964.4,1964.0,1.298]
[1688416272891,2.56478816,1964.4,1964.1,12.72832]
[1688416273094,7.65546816,1964.4,1964.1,12.72832]
[1688416273407,0.00337143,1964.3,1964.1,12.72832]
[1688416274616,7.65546816,1964.4,1964.1,12.72832]
[1688416275203,7.65546816,1964.4,1964.1,14.371132]
[1688416275511,7.65882969,1964.4,1964.1,14.371132]
[1688416276539,7.65882969,1964.4,1964.1,12.72832]
[1688416279182,5.10004153,1964.4,1964.1,12.72832]
[1688416279387,0.00936153,1964.4,1964.1,12.72832]
[1688416280214,0.00936153,1964.4,1964.1,14.02632]
[1688416284144,5.09998153,1964.4,1964.1,14.02632]
[1688416284305,5.09998153,1964.4,1964.1,11.48066]
[1688416284505,10.19060153,1964.4,1964.1,10.18266]
[1688416286831,5.09998153,1964.4,1964.1,10.18266]
[1688416287032,5.09998153,1964.4,1964.1,12.72835]
[1688416287748,0.00936153,1964.4,1964.1,12.72835]
[1688416287957,0.00936153,1964.4,1964.1,14.907365]
[1688416292052,0.00336153,1964.4,1964.1,16.205365]
[1688416292355,0.00336153,1964.4,1964.2,5.362]
[1688416292512,0.00336153,1964.4,1964.3,13.20717]
[1688416292938,0.00336153,1964.4,1964.3,18.56917]
[1688416293160,0.00336153,1964.4,1964.3,21.07177]
[1688416293324,0.00336153,1964.4,1964.3,15.401217]
[1688416293525,5.09038,1964.5,1964.3,15.401217]
[1688416294356,5.09038,1964.5,1964.3,7.59347]
[1688416294514,0.00305594,1964.4,1964.3,7.59347]
[1688416294715,0.00305594,1964.4,1964.3,12.95547]
[1688416294924,0.00305594,1964.4,1964.3,18.52634]
[1688416295368,0.00305594,1964.4,1964.3,13.16434]
[1688416295543,5.09038,1964.5,1964.3,14.864519]
[1688416295933,5.09038,1964.5,1964.3,9.773649]
[1688416296516,0.00305594,1964.4,1964.3,9.773649]
[1688416296930,0.00305594,1964.4,1964.3,20.226519]
[1688416297134,0.00305594,1964.4,1964.3,9.773649]
[1688416297861,5.09366594,1964.4,1964.3,7.59347]
[1688416298055,0.00305594,1964.4,1964.3,7.59347]
[1688416301372,5.09366594,1964.4,1964.1,10.18247]
[1688416301602,5.10998775,1964.4,1964.2,5.09102]
[1688416301769,5.10998775,1964.4,1964.1,7.47613]
[1688416301968,13.77942268,1964.4,1964.1,7.47613]
[1688416302666,2.55878816,1964.3,1963.9,3.41487265]
[1688416303002,10.20468181,1964.2,1963.9,5.09184]
[1688416303303,0.006,1964.1,1963.9,5.09184]
[1688416303505,5.09754,1964.1,1963.9,5.09184]
[1688416304270,10.18908,1964.1,1963.9,5.09184]
[1688416304472,10.18308,1964.1,1963.9,5.09184]
[1688416305105,10.18308,1964.1,1963.8,12.70752]
[1688416305498,10.18908,1964.1,1963.8,12.70752]
[1688416307219,10.18308,1964.1,1963.8,12.70752]
[1688416313374,10.18308,1964.1,1963.8,7.61546]
[1688416313375,14.00986718,1964.1,1963.8,7.61546]
[1688416313575,12.73477,1964.1,1963.8,7.61546]
[1688416313862,10.18308,1964.1,1963.8,12.70762]
[1688416314262,10.18908,1964.1,1963.8,12.70762]
[1688416314467,0.00306028,1964.0,1963.8,12.70762]
[1688416314664,5.09475028,1964.0,1963.8,12.70762]
[1688416314845,0.00306028,1964.0,1963.8,12.70762]
[1688416315652,5.09471028,1964.0,1963.8,12.70762]
[1688416315865,0.00306028,1964.0,1963.8,12.70762]
[1688416316664,0.00306028,1964.0,1963.8,15.2537]
[1688416319594,10.18308,1964.1,1963.8,15.2537]
[1688416319754,5.09154,1964.1,1963.8,15.2537]
[1688416319948,10.18308,1964.1,1963.8,12.70762]
[1688416320881,5.09154,1964.1,1963.8,12.70762]
[1688416322829,10.18293,1964.1,1963.8,12.70762]
[1688416324933,10.18278,1964.1,1963.8,12.70762]
[1688416327555,5.09139,1964.1,1963.8,12.70762]
[1688416328867,10.18278,1964.1,1963.8,12.70762]
[1688416329305,5.09139,1964.1,1963.8,12.70762]
[1688416330128,7.65017816,1964.1,1963.8,12.70762]
[1688416330329,7.65017816,1964.1,1963.7,5.54618]
[1688416330330,16.31506516,1964.1,1963.7,8.0923]
[1688416330556,10.1838,1963.9,1963.8,3.0]
[1688416330776,10.1838,1963.9,1963.7,8.09235]
[1688416331748,5.0919,1963.9,1963.7,8.09235]
[1688416331950,10.1838,1963.9,1963.7,3.0]
[1688416332281,12.72975,1963.9,1963.7,3.0]
[1688416332971,11.457375,1963.9,1963.5,9.76950909]
[1688416333188,14.003325,1963.9,1963.5,9.76950909]
[1688416333374,1.279575,1963.9,1963.5,14.86244909]
[1688416333541,0.006,1963.9,1963.5,17.00171]
[1688416333741,5.09797,1963.9,1963.5,17.00171]
[1688416333938,10.18484,1963.7,1963.4,10.18595]
[1688416334142,10.18484,1963.7,1963.5,5.0929]
[1688416334580,10.18484,1963.7,1963.4,10.18613]
[1688416334889,12.73105,1963.7,1963.4,5.09306]
[1688416335091,12.73105,1963.7,1963.3,8.09331]
[1688416335274,14.268266,1963.7,1963.3,3.0]
[1688416335577,10.18598,1963.5,1963.2,14.30494]
[1688416335891,5.09299,1963.5,1963.2,14.30494]
[1688416336180,5.09299,1963.5,1963.2,16.8518]
[1688416336345,10.20192181,1963.6,1963.2,18.8771676]
[1688416337946,5.10906181,1963.6,1963.2,18.8771676]
[1688416338151,10.20180181,1963.6,1963.2,18.8771676]
[1688416338456,10.20180181,1963.6,1963.2,16.8518]
[1688416339357,10.20180181,1963.6,1963.2,15.0405]
[1688416342575,10.20180181,1963.6,1963.2,12.49364]
[1688416344475,12.74814181,1963.6,1963.2,12.49364]
[1688416347806,12.75414181,1963.6,1963.2,12.49364]
[1688416348930,14.75414181,1963.6,1963.2,7.40005]
[1688416349114,14.75414181,1963.6,1963.2,12.49377]
[1688416351541,2.56478816,1963.5,1963.2,2.3065]
[1688416351700,12.733,1963.4,1963.2,5.3065]
[1688416352839,12.733,1963.4,1963.1,1.8555]
[1688416353037,12.733,1963.4,1963.1,6.94946]
[1688416353846,10.1864,1963.4,1963.1,12.04344]
[1688416359323,10.8971992,1963.4,1963.1,1.8555]
[1688416359548,13.4437992,1963.4,1963.1,6.94942]
[1688416359854,13.4497992,1963.4,1963.1,6.94942]
[1688416360051,10.19319,1963.3,1963.1,5.09392]
[1688416362042,5.09349,1963.3,1963.1,5.09392]
[1688416362249,5.09349,1963.3,1963.1,10.1879]
[1688416362447,10.18698,1963.3,1963.1,5.09392]
[1688416363778,5.09349,1963.3,1963.1,5.09392]
[1688416364887,5.09349,1963.3,1963.1,10.1879]
[1688416368312,0.01632181,1963.5,1963.1,10.1879]
[1688416368473,12.19173,1963.6,1963.2,1.292]
[1688416368809,5.09298,1963.5,1963.3,10.18686]
[1688416372101,5.09826,1963.8,1963.3,14.03159]
[1688416372297,0.006,1964.0,1963.7,1.298]
[1688416372470,0.006,1964.0,1963.8,10.18432]
[1688416372471,5.09765,1964.0,1963.8,10.18432]
[1688416372668,0.006,1964.0,1963.8,10.18432]
[1688416373019,0.006,1964.1,1963.8,11.58717]
[1688416373168,0.006,1964.3,1963.8,19.49525]
[1688416373376,5.09068,1964.4,1964.1,10.18278]
[1688416373377,5.09669,1964.4,1964.1,10.18278]
[1688416374713,0.01632181,1964.3,1964.1,5.09139]
[1688416374914,5.10733181,1964.3,1964.1,5.09139]
[1688416376322,10.19834181,1964.3,1964.0,5.09152]
[1688416376610,15.30855997,1964.3,1964.0,5.09152]
[1688416376911,15.30255997,1964.3,1964.0,5.09152]
[1688416378517,12.75712997,1964.3,1964.0,10.18316]
[1688416378921,12.76312997,1964.3,1964.0,10.18316]
[1688416379849,12.75712997,1964.3,1964.0,10.18316]
[1688416380005,7.66611997,1964.3,1964.0,12.11898]
[1688416380201,7.66611997,1964.3,1964.0,14.6648]
[1688416382645,2.57510997,1964.3,1964.0,14.6648]
[1688416383316,2.57510997,1964.3,1964.0,12.72898]
[1688416386059,0.006,1964.5,1964.1,1.298]
[1688416386259,2.006,1964.7,1964.3,12.72717]
[1688416386414,0.006,1964.7,1964.4,3.0]
[1688416386614,0.006,1964.7,1964.6,12.72522]
[1688416386852,0.006,1964.8,1964.6,12.72522]
[1688416391045,5.0956,1964.8,1964.6,10.18018]
[1688416391547,0.006,1964.7,1964.6,10.18018]
[1688416392819,5.09583,1964.7,1964.6,5.09009]
[1688416393538,5.09583,1964.7,1964.5,10.1804]
[1688416394669,5.09583,1964.7,1964.5,5.0902]
[1688416394821,6.11600518,1964.7,1964.5,5.0902]
[1688416395842,2.55878816,1964.6,1964.2,1.7889]
[1688416396042,10.1807,1964.5,1964.2,5.09093]
[1688416396228,5.09635,1964.5,1964.2,5.09093]
[1688416396644,0.006,1964.4,1964.2,5.09093]
[1688416396845,0.006,1964.4,1964.2,10.18206]
[1688416397369,5.09661,1964.4,1964.2,5.09093]
[1688416397521,15.29130816,1964.4,1964.0,7.1082]
[1688416397721,0.006,1964.3,1964.1,5.0913]
[1688416397947,13.81158772,1964.3,1964.1,5.0913]
[1688416398146,13.81158772,1964.3,1964.0,7.41084]
[1688416398336,13.81158772,1964.3,1964.0,7.41082]
[1688416398631,13.81158772,1964.3,1964.0,12.50246]
[1688416398836,8.72059772,1964.3,1964.0,12.50246]
[1688416399459,8.72059772,1964.3,1964.0,15.04828]
[1688416400764,3.62972772,1964.3,1964.0,15.04828]
[1688416400954,8.72068772,1964.3,1964.0,15.04828]
[1688416402064,8.72068772,1964.3,1964.0,12.50246]
[1688416402234,0.87206877,1964.2,1964.0,12.50246]
[1688416402434,14.7286,1964.1,1963.6,10.18508]
[1688416402642,0.006,1964.2,1963.8,10.45416]
[1688416402840,1.298,1964.3,1963.8,12.7304]
[1688416402841,7.09701,1964.3,1963.8,12.7304]